[Event "GrandPrix_30.05"]
[Site "Chess.com"]
[Date "2020.05.30"]
[Round "1"]
[White "Alex_Molchanov"]
[Black "GM_LOADING"]
[Result "1-0"]
[WhiteElo "2065"]
[BlackElo "2311"]
[TimeControl "600+2"]
[EndTime "8:22:55 PDT"]
[Termination "Alex_Molchanov won by checkmate"]

1. c4 {[%clk 0:09:56.9]} 1... e6 {[%clk 0:10:00.5]} 2. g3 {[%clk 0:09:51.1]}
2... Nf6 {[%clk 0:10:00.3]} 3. Bg2 {[%clk 0:09:52.4]} 3... d5 {[%clk 0:10:00.1]}
4. Nf3 {[%clk 0:09:53.2]} 4... d4 {[%clk 0:10:01.2]} 5. O-O {[%clk 0:09:45.8]}
5... c5 {[%clk 0:10:01.4]} 6. e3 {[%clk 0:09:44.9]} 6... Nc6 {[%clk 0:10:02]} 7.
exd4 {[%clk 0:09:46.1]} 7... cxd4 {[%clk 0:10:03.9]} 8. d3 {[%clk 0:09:46.9]}
8... Bd6 {[%clk 0:10:05]} 9. Bg5 {[%clk 0:09:46.7]} 9... h6 {[%clk 0:10:05.6]}
10. Bxf6 {[%clk 0:09:47.4]} 10... Qxf6 {[%clk 0:10:07.5]} 11. a3 {[%clk
0:09:46.5]} 11... a5 {[%clk 0:10:09.1]} 12. Nbd2 {[%clk 0:09:47.6]} 12... Qe7
{[%clk 0:10:10]} 13. Rc1 {[%clk 0:09:37.4]} 13... O-O {[%clk 0:10:06.7]} 14. Re1
{[%clk 0:09:12.2]} 14... Rd8 {[%clk 0:10:01.8]} 15. Nh4 {[%clk 0:07:22.2]} 15...
Qf8 {[%clk 0:08:43.2]} 16. f4 {[%clk 0:07:10]} 16... g5 {[%clk 0:05:55]} 17.
fxg5 {[%clk 0:06:58.3]} 17... hxg5 {[%clk 0:05:56.9]} 18. Qg4 {[%clk 0:05:54.1]}
18... Qg7 {[%clk 0:05:55.7]} 19. Nhf3 {[%clk 0:05:53.5]} 19... Be7 {[%clk
0:05:53.9]} 20. Qh5 {[%clk 0:05:37.1]} 20... g4 {[%clk 0:04:25.1]} 21. Nh4
{[%clk 0:05:33.2]} 21... a4 {[%clk 0:04:11.3]} 22. Re4 {[%clk 0:03:00.4]} 22...
f5 {[%clk 0:03:38.7]} 23. Re2 {[%clk 0:02:58.2]} 23... Bd7 {[%clk 0:02:22]} 24.
Nxf5 {[%clk 0:01:17.1]} 24... exf5 {[%clk 0:02:02.2]} 25. Bd5+ {[%clk
0:01:18.6]} 25... Kf8 {[%clk 0:01:57.7]} 26. Rf1 {[%clk 0:01:20.1]} 26... Bf6
{[%clk 0:00:18]} 27. Ne4 {[%clk 0:00:36.4]} 27... Ne7 {[%clk 0:00:07.9]} 28. Nc5
{[%clk 0:00:25.9]} 28... Nxd5 {[%clk 0:00:08.1]} 29. cxd5 {[%clk 0:00:26.7]}
29... Rac8 {[%clk 0:00:06.3]} 30. Ne6+ {[%clk 0:00:22.6]} 30... Bxe6 {[%clk
0:00:07.3]} 31. Rxe6 {[%clk 0:00:22.3]} 31... Rxd5 {[%clk 0:00:06.7]} 32. Rxf5
{[%clk 0:00:20]} 32... Rxf5 {[%clk 0:00:07.5]} 33. Qxf5 {[%clk 0:00:21.9]} 33...
Rc1+ {[%clk 0:00:05.4]} 34. Kf2 {[%clk 0:00:21.3]} 34... Kf7 {[%clk 0:00:05.4]}
35. Qd5 {[%clk 0:00:06.8]} 35... Qh6 {[%clk 0:00:05.8]} 36. Re4+ {[%clk
0:00:05]} 36... Kg7 {[%clk 0:00:05.3]} 37. Qd7+ {[%clk 0:00:04.5]} 37... Kg6
{[%clk 0:00:04.6]} 38. Rxg4+ {[%clk 0:00:05.8]} 38... Kh5 {[%clk 0:00:06]} 39.
Qf5+ {[%clk 0:00:06.2]} 39... Bg5 {[%clk 0:00:07.6]} 40. Rh4# {[%clk 0:00:07.3]}
1-0

[Event "GrandPrix_30.05"]
[Site "Chess.com"]
[Date "2020.05.30"]
[Round "1"]
[White "Valeriy_Neverov"]
[Black "Igor_Lysyj"]
[Result "0-1"]
[WhiteElo "2181"]
[BlackElo "2661"]
[TimeControl "600+2"]
[EndTime "8:23:01 PDT"]
[Termination "Igor_Lysyj won by resignation"]

1. d4 {[%clk 0:09:49.9]} 1... Nf6 {[%clk 0:09:59.9]} 2. c4 {[%clk 0:09:49.6]}
2... e6 {[%clk 0:10:00.5]} 3. Nf3 {[%clk 0:09:49]} 3... d5 {[%clk 0:09:59.7]} 4.
cxd5 {[%clk 0:09:49]} 4... exd5 {[%clk 0:10:00.1]} 5. Nc3 {[%clk 0:09:50]} 5...
c6 {[%clk 0:09:59.3]} 6. Bg5 {[%clk 0:09:48.1]} 6... h6 {[%clk 0:09:59.1]} 7.
Bh4 {[%clk 0:09:45.1]} 7... Bf5 {[%clk 0:09:59.1]} 8. e3 {[%clk 0:09:45.1]} 8...
Nbd7 {[%clk 0:09:56.7]} 9. Bd3 {[%clk 0:09:42.7]} 9... Bxd3 {[%clk 0:09:56.4]}
10. Qxd3 {[%clk 0:09:42.9]} 10... Be7 {[%clk 0:09:57.4]} 11. O-O {[%clk
0:09:32.9]} 11... O-O {[%clk 0:09:57.3]} 12. h3 {[%clk 0:09:23.9]} 12... a5
{[%clk 0:09:46.8]} 13. Bg3 {[%clk 0:09:12]} 13... Re8 {[%clk 0:09:44.1]} 14. Ne5
{[%clk 0:09:05.2]} 14... Nxe5 {[%clk 0:09:40.7]} 15. Bxe5 {[%clk 0:09:01.8]}
15... Nd7 {[%clk 0:09:40.1]} 16. Bg3 {[%clk 0:08:23.6]} 16... Nb6 {[%clk
0:09:38.7]} 17. Rae1 {[%clk 0:08:15]} 17... Bd6 {[%clk 0:09:31.2]} 18. Bxd6
{[%clk 0:07:53.3]} 18... Qxd6 {[%clk 0:09:31.3]} 19. Re2 {[%clk 0:07:53.9]}
19... Rad8 {[%clk 0:09:20.8]} 20. Rfe1 {[%clk 0:07:52.7]} 20... Re6 {[%clk
0:09:14.2]} 21. a4 {[%clk 0:06:22.9]} 21... Qb4 {[%clk 0:08:55.2]} 22. Qc2
{[%clk 0:06:13.8]} 22... Rde8 {[%clk 0:08:37.5]} 23. b3 {[%clk 0:06:07.3]} 23...
Nc8 {[%clk 0:08:35.7]} 24. Na2 {[%clk 0:05:49.3]} 24... Qb6 {[%clk 0:08:36]} 25.
Nc1 {[%clk 0:05:45.1]} 25... Nd6 {[%clk 0:08:31]} 26. Nd3 {[%clk 0:04:48.2]}
26... Qd8 {[%clk 0:08:20.6]} 27. Nc5 {[%clk 0:04:25.4]} 27... R6e7 {[%clk
0:08:20.8]} 28. f3 {[%clk 0:03:57.8]} 28... Qc8 {[%clk 0:07:01.2]} 29. Qc3
{[%clk 0:03:34.4]} 29... Qc7 {[%clk 0:06:55.1]} 30. e4 {[%clk 0:03:09.5]} 30...
dxe4 {[%clk 0:05:49.1]} 31. fxe4 {[%clk 0:03:09.1]} 31... b6 {[%clk 0:05:49.3]}
32. e5 {[%clk 0:03:07.4]} 32... Nf5 {[%clk 0:05:50.2]} 33. Nd3 {[%clk
0:03:00.6]} 33... Rd8 {[%clk 0:05:16.4]} 34. Re4 {[%clk 0:02:53.1]} 34... Qd7
{[%clk 0:04:44.5]} 35. b4 {[%clk 0:01:23.1]} 35... Nxd4 {[%clk 0:02:54.7]} 36.
bxa5 {[%clk 0:01:21.8]} 36... bxa5 {[%clk 0:02:55.5]} 37. Nc5 {[%clk 0:01:21.8]}
37... Qd5 {[%clk 0:02:55.2]} 38. Kh1 {[%clk 0:01:12]} 38... Ne6 {[%clk
0:02:37.5]} 39. Rc4 {[%clk 0:00:47.2]} 39... Qd2 {[%clk 0:01:27.2]} 40. Qxd2
{[%clk 0:00:43.2]} 40... Rxd2 {[%clk 0:01:27]} 41. Nb3 {[%clk 0:00:39.9]} 41...
Rd5 {[%clk 0:01:16.2]} 42. Rxc6 {[%clk 0:00:38.4]} 42... Rb7 {[%clk 0:01:14.1]}
43. Re3 {[%clk 0:00:28.9]} 43... Rb4 {[%clk 0:01:05.8]} 44. Rc8+ {[%clk
0:00:14.2]} 44... Kh7 {[%clk 0:01:05.6]} 45. Kh2 {[%clk 0:00:13.9]} 45... Rxa4
{[%clk 0:01:04]} 46. Nc1 {[%clk 0:00:11.1]} 46... Rd2 {[%clk 0:00:53.3]} 47. Nb3
{[%clk 0:00:06.2]} 47... Rb2 {[%clk 0:00:46.3]} 48. Nc5 {[%clk 0:00:04.8]} 48...
Rc4 {[%clk 0:00:45.3]} 0-1

[Event "GrandPrix_30.05"]
[Site "Chess.com"]
[Date "2020.05.30"]
[Round "1"]
[White "Nodar_Lortkipanidze"]
[Black "Forking_U"]
[Result "1-0"]
[WhiteElo "2586"]
[BlackElo "2158"]
[TimeControl "600+2"]
[EndTime "8:23:08 PDT"]
[Termination "Nodar_Lortkipanidze won on time"]

1. e4 {[%clk 0:10:01.9]} 1... e5 {[%clk 0:09:59.2]} 2. Nf3 {[%clk 0:10:02.3]}
2... Nc6 {[%clk 0:09:59.9]} 3. d4 {[%clk 0:10:03.6]} 3... exd4 {[%clk
0:10:00.5]} 4. Nxd4 {[%clk 0:10:05.5]} 4... Nf6 {[%clk 0:09:55.6]} 5. Nxc6
{[%clk 0:10:06.4]} 5... bxc6 {[%clk 0:09:55.9]} 6. e5 {[%clk 0:10:07.8]} 6...
Qe7 {[%clk 0:09:56.4]} 7. Qe2 {[%clk 0:10:09.2]} 7... Nd5 {[%clk 0:09:57.6]} 8.
c4 {[%clk 0:10:10.6]} 8... Nb6 {[%clk 0:09:54.5]} 9. Nd2 {[%clk 0:09:46.7]} 9...
a5 {[%clk 0:08:28]} 10. Qe3 {[%clk 0:09:29.9]} 10... f6 {[%clk 0:07:03.3]} 11.
exf6 {[%clk 0:09:16.5]} 11... Qxe3+ {[%clk 0:06:57.2]} 12. fxe3 {[%clk
0:09:18.4]} 12... gxf6 {[%clk 0:06:57.5]} 13. Be2 {[%clk 0:09:17.6]} 13... Bh6
{[%clk 0:06:25]} 14. Bh5+ {[%clk 0:08:54.1]} 14... Ke7 {[%clk 0:06:25]} 15. b3
{[%clk 0:08:37.1]} 15... d5 {[%clk 0:05:15.6]} 16. Ba3+ {[%clk 0:08:32.2]} 16...
Ke6 {[%clk 0:05:01.3]} 17. O-O-O {[%clk 0:07:30.7]} 17... Rg8 {[%clk 0:04:31.7]}
18. Nf3 {[%clk 0:06:34.4]} 18... Rxg2 {[%clk 0:03:51.4]} 19. Nd4+ {[%clk
0:04:32.5]} 19... Kd7 {[%clk 0:03:49.2]} 20. Kb1 {[%clk 0:04:27.2]} 20... Bxe3
{[%clk 0:03:22.2]} 21. Rhe1 {[%clk 0:03:20.8]} 21... Bxd4 {[%clk 0:03:01]} 22.
Rxd4 {[%clk 0:03:21.8]} 22... c5 {[%clk 0:02:19.2]} 23. Rf4 {[%clk 0:02:51.5]}
23... Rxh2 {[%clk 0:01:50.9]} 24. Be8+ {[%clk 0:02:48.3]} 24... Kd8 {[%clk
0:01:43.1]} 25. Bc6 {[%clk 0:02:35.8]} 25... Bd7 {[%clk 0:01:36.3]} 26. Bxa8
{[%clk 0:02:36.8]} 26... Nxa8 {[%clk 0:01:37.7]} 27. cxd5 {[%clk 0:02:34.6]}
27... f5 {[%clk 0:01:37.2]} 28. Bxc5 {[%clk 0:02:35.1]} 28... Nb6 {[%clk
0:01:38.1]} 29. d6 {[%clk 0:02:18.8]} 29... Nd5 {[%clk 0:01:34]} 30. Rf3 {[%clk
0:02:13.8]} 30... f4 {[%clk 0:01:12.4]} 31. Ka1 {[%clk 0:01:54]} 31... Bg4
{[%clk 0:00:49.3]} 32. Rd3 {[%clk 0:01:42.1]} 32... c6 {[%clk 0:00:50.4]} 33.
Re7 {[%clk 0:00:57]} 33... Bf5 {[%clk 0:00:11.7]} 34. Rxd5 {[%clk 0:00:47.1]}
34... cxd5 {[%clk 0:00:12.9]} 35. Bb6+ {[%clk 0:00:48.6]} 35... Kc8 {[%clk
0:00:14.3]} 36. Rc7+ {[%clk 0:00:50.1]} 36... Kb8 {[%clk 0:00:15.1]} 37. d7
{[%clk 0:00:51.7]} 37... Bxd7 {[%clk 0:00:13.9]} 38. Rxd7 {[%clk 0:00:53.6]}
38... h5 {[%clk 0:00:03.1]} 39. Rf7 {[%clk 0:00:42.9]} 39... h4 {[%clk
0:00:02.5]} 40. Bc7+ {[%clk 0:00:40.5]} 40... Kc8 {[%clk 0:00:03.3]} 41. Bxf4
{[%clk 0:00:42]} 41... Rf2 {[%clk 0:00:03.9]} 42. Rc7+ {[%clk 0:00:27]} 42...
Kd8 {[%clk 0:00:03.2]} 43. Bd6 {[%clk 0:00:27.8]} 43... h3 {[%clk 0:00:03]} 44.
Rh7 {[%clk 0:00:28.2]} 44... Rf3 {[%clk 0:00:02.6]} 45. Kb2 {[%clk 0:00:29]}
45... Ke8 {[%clk 0:00:03.2]} 46. Rh5 {[%clk 0:00:27.9]} 1-0

[Event "GrandPrix_30.05"]
[Site "Chess.com"]
[Date "2020.05.30"]
[Round "1"]
[White "switlave"]
[Black "ZoranRunic1"]
[Result "1-0"]
[WhiteElo "2172"]
[BlackElo "2298"]
[TimeControl "600+2"]
[EndTime "8:23:08 PDT"]
[Termination "switlave won on time"]

1. d4 {[%clk 0:09:57.8]} 1... Nf6 {[%clk 0:09:56.8]} 2. Bf4 {[%clk 0:09:57.9]}
2... c5 {[%clk 0:09:52.7]} 3. e3 {[%clk 0:09:59.1]} 3... e6 {[%clk 0:09:52.2]}
4. c3 {[%clk 0:09:59.2]} 4... b6 {[%clk 0:09:52.6]} 5. Nf3 {[%clk 0:09:56.4]}
5... Bb7 {[%clk 0:09:53.5]} 6. Bd3 {[%clk 0:09:55.8]} 6... Be7 {[%clk
0:09:51.8]} 7. Nbd2 {[%clk 0:09:32.2]} 7... O-O {[%clk 0:09:51.6]} 8. e4 {[%clk
0:09:25.3]} 8... Nc6 {[%clk 0:09:09.2]} 9. a3 {[%clk 0:08:42.7]} 9... d6 {[%clk
0:08:47.4]} 10. O-O {[%clk 0:06:55.3]} 10... e5 {[%clk 0:08:25.5]} 11. Be3
{[%clk 0:06:04.8]} 11... Ng4 {[%clk 0:08:15.2]} 12. dxc5 {[%clk 0:05:20]} 12...
Nxe3 {[%clk 0:08:05.5]} 13. fxe3 {[%clk 0:05:19.4]} 13... dxc5 {[%clk
0:07:49.7]} 14. Qe2 {[%clk 0:05:16.8]} 14... Qc7 {[%clk 0:07:26.5]} 15. Ba6
{[%clk 0:04:58]} 15... Rad8 {[%clk 0:06:51.7]} 16. Rfd1 {[%clk 0:03:44.6]} 16...
g6 {[%clk 0:06:47]} 17. b4 {[%clk 0:03:20.4]} 17... Kg7 {[%clk 0:06:44.1]} 18.
Nb3 {[%clk 0:03:11.2]} 18... Nb8 {[%clk 0:05:55.2]} 19. Bxb7 {[%clk 0:03:05.4]}
19... Qxb7 {[%clk 0:05:54.2]} 20. Qc4 {[%clk 0:03:05.4]} 20... Rc8 {[%clk
0:04:50.4]} 21. b5 {[%clk 0:02:55.2]} 21... Nd7 {[%clk 0:04:40]} 22. Qd5 {[%clk
0:02:24.2]} 22... Qxd5 {[%clk 0:04:33.4]} 23. exd5 {[%clk 0:02:23.9]} 23... c4
{[%clk 0:04:25.4]} 24. Nbd2 {[%clk 0:02:05.7]} 24... f5 {[%clk 0:04:15.4]} 25.
a4 {[%clk 0:02:01.3]} 25... g5 {[%clk 0:04:09.6]} 26. h3 {[%clk 0:01:30.1]}
26... h5 {[%clk 0:04:04.2]} 27. g4 {[%clk 0:01:27.3]} 27... Bc5 {[%clk
0:03:36.5]} 28. Nxc4 {[%clk 0:01:22.6]} 28... fxg4 {[%clk 0:03:31.8]} 29. Nxg5
{[%clk 0:01:22.2]} 29... Kg6 {[%clk 0:03:15.7]} 30. Ne6 {[%clk 0:01:09.9]} 30...
Rf3 {[%clk 0:03:12]} 31. hxg4 {[%clk 0:01:10.9]} 31... hxg4 {[%clk 0:03:11.6]}
32. a5 {[%clk 0:01:07.1]} 32... Rh8 {[%clk 0:02:29.9]} 33. axb6 {[%clk 0:00:58]}
33... Rg3+ {[%clk 0:02:20.1]} 34. Kf2 {[%clk 0:00:58.2]} 34... Rf3+ {[%clk
0:02:15.7]} 35. Ke2 {[%clk 0:00:52.8]} 35... Bxb6 {[%clk 0:02:12.8]} 36. Rg1
{[%clk 0:00:46.1]} 36... Rh2+ {[%clk 0:02:11.4]} 37. Kd3 {[%clk 0:00:45.3]}
37... Kf5 {[%clk 0:01:59]} 38. Nd6+ {[%clk 0:00:40.2]} 38... Kf6 {[%clk
0:01:59.1]} 39. Rxg4 {[%clk 0:00:33.2]} 39... Rxe3+ {[%clk 0:01:52.4]} 40. Kc4
{[%clk 0:00:34.2]} 40... Rf2 {[%clk 0:01:32.4]} 41. Rag1 {[%clk 0:00:33]} 41...
Ke7 {[%clk 0:01:06.5]} 42. Nc8+ {[%clk 0:00:27.9]} 42... Ke8 {[%clk 0:01:06.6]}
43. Rg8+ {[%clk 0:00:24.4]} 43... Nf8 {[%clk 0:01:07.3]} 44. R1g7 {[%clk
0:00:25.3]} 44... Re4+ {[%clk 0:01:03.8]} 45. Kb3 {[%clk 0:00:24.7]} 1-0

[Event "GrandPrix_30.05"]
[Site "Chess.com"]
[Date "2020.05.30"]
[Round "1"]
[White "madamDD"]
[Black "Saqo007"]
[Result "1/2-1/2"]
[WhiteElo "2417"]
[BlackElo "2134"]
[TimeControl "600+2"]
[EndTime "8:23:10 PDT"]
[Termination "Game drawn by agreement"]

1. e4 {[%clk 0:10:01.3]} 1... c5 {[%clk 0:09:58.6]} 2. Nc3 {[%clk 0:10:00.9]}
2... d6 {[%clk 0:09:54.2]} 3. f4 {[%clk 0:10:00.3]} 3... Nc6 {[%clk 0:09:50.7]}
4. Nf3 {[%clk 0:09:58.5]} 4... g6 {[%clk 0:09:49]} 5. Bb5 {[%clk 0:09:54.2]}
5... Bg7 {[%clk 0:09:49]} 6. Bxc6+ {[%clk 0:09:03]} 6... bxc6 {[%clk 0:09:47.6]}
7. d3 {[%clk 0:08:34.1]} 7... e6 {[%clk 0:09:41.5]} 8. e5 {[%clk 0:07:14.6]}
8... d5 {[%clk 0:09:34.4]} 9. O-O {[%clk 0:06:50.2]} 9... Ne7 {[%clk 0:09:33.8]}
10. Na4 {[%clk 0:05:41.3]} 10... Qa5 {[%clk 0:09:22.1]} 11. c4 {[%clk
0:05:40.3]} 11... O-O {[%clk 0:06:59.8]} 12. b3 {[%clk 0:05:35.5]} 12... dxc4
{[%clk 0:06:43.6]} 13. dxc4 {[%clk 0:05:33.7]} 13... Rd8 {[%clk 0:06:43.4]} 14.
Bd2 {[%clk 0:05:13.9]} 14... Qc7 {[%clk 0:06:40.9]} 15. Qe2 {[%clk 0:05:08.7]}
15... Nf5 {[%clk 0:06:37.1]} 16. Nxc5 {[%clk 0:04:56.1]} 16... Qb6 {[%clk
0:06:24.2]} 17. Qf2 {[%clk 0:04:54.9]} 17... a5 {[%clk 0:05:52.7]} 18. Rfd1
{[%clk 0:04:37]} 18... Bf8 {[%clk 0:05:37.5]} 19. Ne4 {[%clk 0:04:35.5]} 19...
Qxf2+ {[%clk 0:05:32.8]} 20. Kxf2 {[%clk 0:04:35.1]} 20... a4 {[%clk 0:05:34.7]}
21. b4 {[%clk 0:03:57.9]} 21... Ba6 {[%clk 0:05:07.2]} 22. c5 {[%clk 0:03:00.7]}
22... Bc4 {[%clk 0:05:02.7]} 23. Nd6 {[%clk 0:02:34.5]} 23... Bd5 {[%clk
0:04:58.6]} 24. Bc3 {[%clk 0:02:27.2]} 24... h5 {[%clk 0:04:56.7]} 25. Ng5
{[%clk 0:02:23.3]} 25... Nxd6 {[%clk 0:04:49.2]} 26. cxd6 {[%clk 0:02:09.3]}
26... a3 {[%clk 0:04:39]} 27. Bd4 {[%clk 0:01:48.9]} 27... Bg7 {[%clk
0:04:26.2]} 28. h3 {[%clk 0:01:41.8]} 28... Ra4 {[%clk 0:04:25.5]} 29. Bc3
{[%clk 0:00:47.5]} 29... c5 {[%clk 0:04:07.2]} 30. bxc5 {[%clk 0:00:48]} 30...
Rxf4+ {[%clk 0:04:07.3]} 31. Ke3 {[%clk 0:00:47.9]} 31... Rf5 {[%clk 0:03:44.5]}
32. Nf3 {[%clk 0:00:47.7]} 32... Bxf3 {[%clk 0:03:43]} 33. gxf3 {[%clk
0:00:48.3]} 33... Bxe5 {[%clk 0:03:41.5]} 34. Bxe5 {[%clk 0:00:46.8]} 34...
Rxe5+ {[%clk 0:03:43.4]} 35. Kd4 {[%clk 0:00:47.8]} 35... Rf5 {[%clk 0:03:18.3]}
36. Rd3 {[%clk 0:00:42]} 36... Kf8 {[%clk 0:03:05.9]} 37. Rxa3 {[%clk
0:00:37.7]} 37... Ke8 {[%clk 0:02:30.4]} 38. Rb1 {[%clk 0:00:32.3]} 38... Rc8
{[%clk 0:02:21.7]} 39. Ra5 {[%clk 0:00:14.7]} 39... Rd5+ {[%clk 0:02:19.4]} 40.
Kc4 {[%clk 0:00:15.6]} 40... Rxd6 {[%clk 0:02:20]} 41. Rb7 {[%clk 0:00:15.9]}
41... Rd7 {[%clk 0:02:19.7]} 42. Rxd7 {[%clk 0:00:16.2]} 42... Kxd7 {[%clk
0:02:21.6]} 43. Ra7+ {[%clk 0:00:17.3]} 43... Kc6 {[%clk 0:01:53.8]} 44. Rxf7
{[%clk 0:00:11.9]} 44... Ra8 {[%clk 0:01:54.7]} 45. Rf6 {[%clk 0:00:13]} 45...
Ra4+ {[%clk 0:01:54]} 46. Kb3 {[%clk 0:00:14]} 46... Rh4 {[%clk 0:01:55.3]} 47.
Rxe6+ {[%clk 0:00:14.2]} 47... Kxc5 {[%clk 0:01:55.8]} 48. Rxg6 {[%clk
0:00:14.9]} 48... Rxh3 {[%clk 0:01:57.3]} 49. Rf6 {[%clk 0:00:13.4]} 49... h4
{[%clk 0:01:53.3]} 50. Rf5+ {[%clk 0:00:14.6]} 50... Kb6 {[%clk 0:01:52.2]} 51.
Kb4 {[%clk 0:00:15.7]} 51... Rh1 {[%clk 0:01:53.6]} 52. Rf6+ {[%clk 0:00:16.6]}
52... Kb7 {[%clk 0:01:54.3]} 53. Rh6 {[%clk 0:00:17.1]} 53... h3 {[%clk
0:01:55.5]} 54. a4 {[%clk 0:00:17.2]} 54... h2 {[%clk 0:01:56.7]} 55. Ka5 {[%clk
0:00:18.5]} 55... Rf1 {[%clk 0:01:46.9]} 56. Rh7+ {[%clk 0:00:19.5]} 56... Ka8
{[%clk 0:01:46.2]} 57. Rxh2 {[%clk 0:00:17.6]} 57... Rxf3 {[%clk 0:01:47.6]} 58.
Rh5 {[%clk 0:00:17.4]} 58... Rf6 {[%clk 0:01:47.8]} 59. Rc5 {[%clk 0:00:17]}
59... Rg6 {[%clk 0:01:47.6]} 60. Kb5 {[%clk 0:00:16.8]} 60... Rh6 {[%clk
0:01:47.8]} 61. a5 {[%clk 0:00:16.9]} 61... Rg6 {[%clk 0:01:48.1]} 62. Rf5
{[%clk 0:00:16.8]} 62... Kb7 {[%clk 0:01:48.2]} 63. Rf7+ {[%clk 0:00:17.8]}
63... Kb8 {[%clk 0:01:49.2]} 64. a6 {[%clk 0:00:18]} 64... Rg1 {[%clk
0:01:48.4]} 65. Kb6 {[%clk 0:00:17.2]} 65... Rb1+ {[%clk 0:01:48.5]} 66. Kc6
{[%clk 0:00:18.4]} 66... Rc1+ {[%clk 0:01:49.4]} 67. Kb6 {[%clk 0:00:19.8]}
67... Rb1+ {[%clk 0:01:50.6]} 68. Kc6 {[%clk 0:00:21.1]} 68... Rc1+ {[%clk
0:01:51.8]} 69. Kb6 {[%clk 0:00:20.8]} 1/2-1/2

[Event "GrandPrix_30.05"]
[Site "Chess.com"]
[Date "2020.05.30"]
[Round "1"]
[White "WhiteCapital80"]
[Black "Eltaj_Safarli"]
[Result "1-0"]
[WhiteElo "2264"]
[BlackElo "2457"]
[TimeControl "600+2"]
[EndTime "8:23:16 PDT"]
[Termination "WhiteCapital80 won by resignation"]

1. e4 {[%clk 0:10:01.9]} 1... e5 {[%clk 0:09:57.8]} 2. Nf3 {[%clk 0:09:54]} 2...
Nc6 {[%clk 0:09:58.9]} 3. Bb5 {[%clk 0:09:54.3]} 3... a6 {[%clk 0:10:00]} 4. Ba4
{[%clk 0:09:53.8]} 4... d6 {[%clk 0:10:01.9]} 5. c3 {[%clk 0:09:45.7]} 5... Bd7
{[%clk 0:10:02.8]} 6. d4 {[%clk 0:09:38.7]} 6... g6 {[%clk 0:10:03]} 7. O-O
{[%clk 0:09:23.7]} 7... Bg7 {[%clk 0:10:03.8]} 8. dxe5 {[%clk 0:08:17.5]} 8...
Nxe5 {[%clk 0:09:56.1]} 9. Nxe5 {[%clk 0:08:15.4]} 9... dxe5 {[%clk 0:09:56.2]}
10. Bg5 {[%clk 0:07:48.6]} 10... Nf6 {[%clk 0:09:01.3]} 11. f3 {[%clk 0:07:45]}
11... h6 {[%clk 0:08:35.9]} 12. Be3 {[%clk 0:07:35]} 12... O-O {[%clk
0:08:24.9]} 13. Bxd7 {[%clk 0:07:27.7]} 13... Qxd7 {[%clk 0:07:45.9]} 14. Qxd7
{[%clk 0:07:17.6]} 14... Nxd7 {[%clk 0:07:47.8]} 15. Rd1 {[%clk 0:07:02.3]}
15... Rfd8 {[%clk 0:07:45]} 16. Nd2 {[%clk 0:06:43]} 16... Bf8 {[%clk
0:07:24.5]} 17. Nc4 {[%clk 0:06:19.6]} 17... a5 {[%clk 0:06:46]} 18. Rd5 {[%clk
0:05:40.1]} 18... c6 {[%clk 0:05:52.8]} 19. Rxa5 {[%clk 0:05:26.7]} 19... b5
{[%clk 0:05:29.1]} 20. Rxa8 {[%clk 0:04:37.4]} 20... Rxa8 {[%clk 0:05:31]} 21.
Nb6 {[%clk 0:04:35.1]} 21... Nxb6 {[%clk 0:05:31.5]} 22. Bxb6 {[%clk 0:04:35.9]}
22... c5 {[%clk 0:05:04.8]} 23. c4 {[%clk 0:04:08.4]} 23... bxc4 {[%clk
0:03:10.1]} 24. a4 {[%clk 0:03:58]} 24... f5 {[%clk 0:02:52.2]} 25. a5 {[%clk
0:03:50]} 25... Kf7 {[%clk 0:02:53.2]} 26. Rc1 {[%clk 0:03:27.2]} 26... Ke6
{[%clk 0:02:35.1]} 27. Rxc4 {[%clk 0:03:26.5]} 27... Bd6 {[%clk 0:02:35.2]} 28.
Kf2 {[%clk 0:02:59.9]} 28... Kd7 {[%clk 0:02:16.4]} 29. Ke3 {[%clk 0:02:42.5]}
29... f4+ {[%clk 0:01:50.4]} 30. Kd3 {[%clk 0:02:38.9]} 30... g5 {[%clk
0:01:52.3]} 31. Rc2 {[%clk 0:02:08.6]} 31... h5 {[%clk 0:01:47.7]} 32. Kc4
{[%clk 0:01:56.6]} 32... Kc6 {[%clk 0:01:44.8]} 33. Rd2 {[%clk 0:01:41.5]} 33...
g4 {[%clk 0:00:53.3]} 34. Rd5 {[%clk 0:01:40.1]} 34... h4 {[%clk 0:00:30.2]} 35.
Bxc5 {[%clk 0:01:30.4]} 35... Bc7 {[%clk 0:00:31.4]} 36. b4 {[%clk 0:01:13.6]}
36... h3 {[%clk 0:00:32.8]} 37. gxh3 {[%clk 0:01:03.9]} 37... gxf3 {[%clk
0:00:29.6]} 38. b5+ {[%clk 0:01:00.5]} 38... Kb7 {[%clk 0:00:30.8]} 39. a6+
{[%clk 0:01:01.4]} 39... Kc8 {[%clk 0:00:32]} 40. Rd3 {[%clk 0:00:59.8]} 40...
Bd8 {[%clk 0:00:03.6]} 41. Rxf3 {[%clk 0:00:56]} 41... Kd7 {[%clk 0:00:04.9]}
42. Kd5 {[%clk 0:00:44.1]} 42... Bc7 {[%clk 0:00:03.1]} 43. a7 {[%clk
0:00:40.2]} 43... Rg8 {[%clk 0:00:02.6]} 44. b6 {[%clk 0:00:37.5]} 44... Bxb6
{[%clk 0:00:03.5]} 45. Bxb6 {[%clk 0:00:38.1]} 45... Rh8 {[%clk 0:00:03.3]} 46.
Rb3 {[%clk 0:00:32.9]} 46... Rf8 {[%clk 0:00:03.3]} 47. Bc5 {[%clk 0:00:33.1]}
47... Rg8 {[%clk 0:00:03.3]} 48. Rb7+ {[%clk 0:00:30]} 1-0